bitfinex/quotes_BTCUSD_20240729
["timestamp","ask_amount","ask_price","bid_price","bid_amount"]
[1722222894156,2.063038,69691.0,69690.0,0.9785]
[1722222894335,2.270538,69691.0,69690.0,0.9]
[1722222894764,2.271538,69691.0,69690.0,0.9]
[1722222894981,2.601122,69691.0,69690.0,0.9]
[1722222895367,2.501122,69691.0,69690.0,0.9]
[1722222895961,2.64422139,69691.0,69690.0,0.9]
[1722222896364,2.74422139,69691.0,69690.0,0.9]
[1722222896565,2.601122,69691.0,69690.0,0.9]
[1722222896995,2.600122,69691.0,69690.0,0.9]
[1722222897196,2.599122,69691.0,69690.0,0.9]
[1722222897417,2.608122,69691.0,69690.0,0.9]
[1722222897576,2.61740336,69691.0,69690.0,0.9]
[1722222898344,2.62340336,69691.0,69690.0,0.9]
[1722222898591,2.52340336,69691.0,69690.0,0.9]
[1722222898805,2.62340336,69691.0,69690.0,0.9]
[1722222899025,2.52340336,69691.0,69690.0,0.9]
[1722222899171,2.62340336,69691.0,69690.0,0.9]
[1722222899906,2.63978565,69691.0,69690.0,0.9]
[1722222900111,2.62340336,69691.0,69690.0,0.9]
[1722222902455,2.29381936,69691.0,69690.0,0.9]
[1722222903218,2.29381936,69691.0,69690.0,0.9601]
[1722222903431,2.08631936,69691.0,69690.0,0.9601]
[1722222903817,2.52340336,69691.0,69690.0,0.9]
[1722222904274,2.29381936,69691.0,69690.0,0.9]
[1722222904940,2.29381936,69691.0,69690.0,0.9601]
[1722222907151,2.08631936,69691.0,69690.0,0.9601]
[1722222907919,2.08631936,69691.0,69690.0,1.0387]
[1722222909503,1.57780736,69691.0,69690.0,1.0387]
[1722222909709,1.79811,69691.0,69690.0,1.0387]
[1722222909880,2.027694,69691.0,69690.0,1.0387]
[1722222910293,2.018694,69691.0,69690.0,1.0387]
[1722222910496,2.027694,69691.0,69690.0,1.0387]
[1722222910672,2.235194,69691.0,69690.0,1.0387]
[1722222910872,2.226194,69691.0,69690.0,1.0387]
[1722222913374,2.36329339,69691.0,69690.0,0.9601]
[1722222913897,2.64222139,69691.0,69690.0,0.9601]
[1722222914149,2.64222139,69691.0,69690.0,0.9]
[1722222914150,2.74222139,69691.0,69690.0,0.9]
[1722222914679,2.74922139,69691.0,69690.0,0.9]
[1722222914902,2.64922139,69691.0,69690.0,0.9]
[1722222915108,2.64222139,69691.0,69690.0,0.9]
[1722222915523,2.64922139,69691.0,69690.0,0.9]
[1722222916134,2.44172139,69691.0,69690.0,0.9]
[1722222916562,2.64922139,69691.0,69690.0,0.9]
[1722222916733,2.276538,69691.0,69690.0,0.9]
[1722222919254,2.276538,69691.0,69690.0,0.814931]
[1722222919484,2.278538,69691.0,69690.0,0.814931]
[1722222919685,2.276538,69691.0,69690.0,0.814931]
[1722222919890,2.227194,69691.0,69690.0,0.814931]
[1722222920104,2.227194,69691.0,69690.0,0.890631]
[1722222920315,2.236194,69691.0,69690.0,0.890631]
[1722222922084,2.236194,69691.0,69690.0,0.814931]
[1722222924376,2.236194,69691.0,69690.0,0.81082739]
[1722222925006,2.662722,69691.0,69690.0,0.81082739]
[1722222925129,2.662722,69691.0,69690.0,0.81175139]
[1722222925579,2.762722,69691.0,69690.0,0.81175139]
[1722222925809,2.285538,69691.0,69690.0,0.81175139]
[1722222927840,2.285538,69691.0,69690.0,0.87555139]
[1722222928311,2.285538,69691.0,69690.0,0.81175139]
[1722222930097,2.29747279,69691.0,69690.0,0.81175139]
[1722222930578,2.39747279,69691.0,69690.0,0.81175139]
[1722222930805,2.29747279,69691.0,69690.0,0.81175139]
[1722222932707,2.24812879,69691.0,69690.0,0.81175139]
[1722222932918,2.236194,69691.0,69690.0,0.81175139]
[1722222933142,2.24812833,69691.0,69690.0,0.81175139]
[1722222935116,2.29747233,69691.0,69690.0,0.81175139]
[1722222935939,2.29747208,69691.0,69690.0,0.81175139]
[1722222937260,2.44057147,69691.0,69690.0,0.81175139]
[1722222938631,2.73485547,69691.0,69690.0,0.81175139]
[1722222938851,2.94699699,69691.0,69690.0,0.81175139]
[1722222939059,3.04699699,69691.0,69690.0,0.81175139]
[1722222939493,2.5096136,69691.0,69690.0,0.81175139]
[1722222940151,2.6096136,69691.0,69690.0,0.81175139]
[1722222940371,2.42287208,69691.0,69690.0,0.81175139]
[1722222940592,2.76675608,69691.0,69690.0,0.81175139]
[1722222941261,2.37287208,69691.0,69690.0,0.81175139]
[1722222941729,2.29747208,69691.0,69690.0,0.81175139]
[1722222941959,2.29747208,69691.0,69690.0,0.87815139]
[1722222942407,2.50970415,69691.0,69690.0,0.81175139]
[1722222942639,2.29747269,69691.0,69690.0,0.81175139]
[1722222942867,2.29747272,69691.0,69690.0,0.81175139]
[1722222943754,2.24812872,69691.0,69690.0,0.81175139]
[1722222944097,2.29747272,69691.0,69690.0,0.81175139]
[1722222945092,2.50970779,69691.0,69690.0,0.81175139]
[1722222945293,2.285538,69691.0,69690.0,0.81175139]
[1722222945540,2.50971175,69691.0,69690.0,0.81175139]
[1722222945961,2.50971164,69691.0,69690.0,0.81175139]
[1722222946341,2.38172375,69691.0,69690.0,0.71175139]
[1722222948475,2.236194,69691.0,69690.0,0.71175139]
[1722222949134,2.285538,69691.0,69690.0,0.71175139]
[1722222949412,2.33800235,69691.0,69690.0,0.71175139]
[1722222949653,2.285538,69691.0,69690.0,0.71175139]
[1722222952418,2.236194,69691.0,69690.0,0.71175139]
[1722222952650,2.15215261,69691.0,69690.0,0.71175139]
[1722222952872,1.94465261,69691.0,69690.0,0.71175139]
[1722222953098,1.79911,69691.0,69690.0,0.71175139]
[1722222956312,1.8110444,69691.0,69690.0,0.71175139]
[1722222957939,1.79995,69691.0,69690.0,0.71175139]
[1722222958138,1.22599,69691.0,69690.0,0.71175139]
[1722222958405,1.470366,69691.0,69690.0,0.71175139]
[1722222958587,1.69995,69691.0,69690.0,0.71175139]
[1722222958716,1.470366,69691.0,69690.0,0.71175139]
[1722222959137,1.69995,69691.0,69690.0,0.71175139]
[1722222959361,0.0608,69690.0,69687.0,0.008877]
[1722222959567,0.0608,69690.0,69660.0,0.0655]
[1722222959568,0.200977,69670.0,69667.0,0.46645618]
[1722222959767,0.917129,69670.0,69664.0,0.42926131]
[1722222960116,0.322327,69670.0,69669.0,0.009533]
[1722222960230,0.651981,69670.0,69669.0,0.008877]
[1722222960817,0.904635,69670.0,69669.0,0.008877]
[1722222961559,0.674981,69670.0,69669.0,0.008877]
[1722222961966,0.697135,69670.0,69669.0,0.008877]
[1722222963194,0.80142177,69670.0,69669.0,0.008877]
[1722222963515,0.926789,69670.0,69669.0,0.008877]
[1722222963790,0.697135,69670.0,69669.0,0.008877]
[1722222964703,0.783285,69670.0,69669.0,0.008877]
[1722222964920,1.014939,69670.0,69669.0,0.008877]
[1722222965147,1.064283,69670.0,69669.0,0.008877]
[1722222965372,1.17972481,69670.0,69669.0,0.008877]
[1722222966326,1.18072481,69670.0,69669.0,0.008877]
[1722222966732,1.17972481,69670.0,69669.0,0.008877]
[1722222968244,1.064283,69670.0,69669.0,0.008877]
[1722222969324,1.064283,69670.0,69669.0,0.151133]
[1722222969325,0.32441777,69670.0,69669.0,0.151133]
[1722222969673,0.674135,69670.0,69669.0,0.073433]
[1722222970088,0.674135,69670.0,69669.0,0.009533]
[1722222970295,1.06757521,69670.0,69669.0,0.008877]
[1722222970459,1.15372521,69670.0,69669.0,0.008877]
[1722222970832,1.17672521,69670.0,69669.0,0.008877]
[1722222971035,1.18472521,69670.0,69669.0,0.008877]
[1722222971240,1.062283,69670.0,69669.0,0.008877]
[1722222971664,1.208483,69670.0,69669.0,0.008877]
[1722222972883,1.150383,69670.0,69669.0,0.008877]
[1722222973524,1.145383,69670.0,69669.0,0.008877]
[1722222973711,1.150383,69670.0,69669.0,0.008877]
[1722222973931,1.29348239,69670.0,69669.0,0.008877]
[1722222974282,1.150383,69670.0,69669.0,0.008877]
[1722222975091,1.158383,69670.0,69669.0,0.008877]
[1722222975224,1.233683,69670.0,69669.0,0.008877]
[1722222975644,1.239683,69670.0,69669.0,0.008877]
[1722222975847,1.234683,69670.0,69669.0,0.008877]
[1722222976420,1.237683,69670.0,69669.0,0.008877]
[1722222976607,1.231683,69670.0,69669.0,0.008877]
[1722222976820,1.228683,69670.0,69669.0,0.008877]
[1722222977017,1.37578239,69670.0,69669.0,0.008877]
[1722222977666,1.37178239,69670.0,69669.0,0.008877]
[1722222977869,1.44198239,69670.0,69669.0,0.008877]
[1722222978067,1.54198239,69670.0,69669.0,0.008877]
[1722222978505,1.54998239,69670.0,69669.0,0.008877]
[1722222978630,1.149583,69670.0,69669.0,0.003877]
[1722222979031,0.91922251,69670.0,69669.0,0.003877]
[1722222979235,0.790285,69670.0,69669.0,0.003877]
[1722222979441,1.012939,69670.0,69669.0,0.003877]
[1722222980083,0.91222251,69670.0,69669.0,0.003877]
[1722222980292,1.14187651,69670.0,69669.0,0.003877]
[1722222980497,0.91222251,69670.0,69669.0,0.003877]
[1722222981164,0.783285,69670.0,69669.0,0.003877]
[1722222981758,1.15936219,69670.0,69669.0,0.003877]
[1722222982302,1.11001819,69670.0,69669.0,0.003877]
[1722222982655,1.017939,69670.0,69669.0,0.003877]
[1722222983067,1.067283,69670.0,69669.0,0.003877]
[1722222983730,1.012939,69670.0,69669.0,0.003877]
[1722222984210,1.020939,69670.0,69669.0,0.003877]
[1722222984445,1.012939,69670.0,69669.0,0.003877]
[1722222984596,1.016939,69670.0,69669.0,0.003877]
[1722222984799,1.14438334,69670.0,69669.0,0.003877]
[1722222985151,1.14038334,69670.0,69669.0,0.003877]
[1722222985351,1.14738334,69670.0,69669.0,0.003877]
[1722222985498,1.14338334,69670.0,69669.0,0.003877]
[1722222985904,1.14638334,69670.0,69669.0,0.003877]
[1722222986712,1.19572734,69670.0,69669.0,0.003877]
[1722222986964,1.26982734,69670.0,69669.0,0.003877]
[1722222987437,1.50048134,69670.0,69669.0,0.003877]
[1722222987637,1.27082734,69670.0,69669.0,0.003877]
[1722222987852,1.43572734,69670.0,69669.0,0.003877]
[1722222988053,1.56538134,69670.0,69669.0,0.003877]
[1722222988257,1.67732089,69670.0,69669.0,0.003877]
[1722222988669,1.82119673,69670.0,69669.0,0.003877]
[1722222989094,1.62614816,69670.0,69669.0,0.003877]
[1722222989243,1.67614816,69670.0,69669.0,0.003877]
[1722222989444,1.90580216,69670.0,69669.0,0.003877]
[1722222989773,1.88386261,69670.0,69669.0,0.003877]
[1722222990137,1.90486261,69670.0,69669.0,0.003877]
[1722222990656,1.85986261,69670.0,69669.0,0.003877]
[1722222990855,1.92186261,69670.0,69669.0,0.003877]
[1722222991364,0.890135,69653.0,69652.0,0.008877]
[1722222991577,1.013135,69653.0,69652.0,0.008877]
[1722222991966,1.013135,69653.0,69652.0,0.149877]
[1722222991967,0.467565,69653.0,69652.0,0.149877]
[1722222992177,0.467565,69653.0,69652.0,0.150533]
[1722222992178,0.1,69653.0,69652.0,0.150533]
[1722222992377,0.114855,69653.0,69652.0,0.150533]
[1722222992565,0.344565,69653.0,69652.0,0.150533]
[1722222992760,1.574275,69653.0,69652.0,0.150533]
[1722222993187,1.344565,69653.0,69652.0,0.150533]
[1722222993611,1.345565,69653.0,69652.0,0.150533]
[1722222993791,1.346565,69653.0,69652.0,0.150533]
[1722222994630,1.116855,69653.0,69652.0,0.150533]
[1722222994772,1.002,69653.0,69652.0,0.150533]
[1722222996015,1.116855,69653.0,69652.0,0.150533]
[1722222996220,1.346565,69653.0,69652.0,0.150533]
[1722222996391,1.116855,69653.0,69652.0,0.150533]
[1722222996592,1.43249264,69653.0,69652.0,0.150533]
[1722222996820,1.43252091,69653.0,69652.0,0.150533]
[1722222997495,1.346565,69653.0,69652.0,0.150533]
[1722222997938,1.116855,69653.0,69652.0,0.150533]
[1722222998150,1.346565,69653.0,69652.0,0.150533]
[1722222998817,1.002,69653.0,69652.0,0.150533]
[1722222999277,1.70671989,69653.0,69652.0,0.149877]
[1722222999468,1.599275,69653.0,69652.0,0.149877]
[1722223000104,1.116855,69653.0,69652.0,0.150533]
[1722223000570,1.002,69653.0,69652.0,0.150533]
[1722223001252,1.08798205,69653.0,69652.0,0.150533]
[1722223001474,1.10947756,69653.0,69652.0,0.150533]
[1722223002148,1.599275,69653.0,69652.0,0.071277]
[1722223002620,1.002,69653.0,69652.0,0.071933]
[1722223002846,1.002,69653.0,69652.0,0.149933]
[1722223004205,1.002,69653.0,69652.0,0.27147655]
[1722223004442,1.002,69653.0,69652.0,0.84575855]
[1722223004665,1.002,69653.0,69652.0,0.84775855]
[1722223004666,1.001,69653.0,69652.0,0.84775855]
[1722223005125,1.002,69653.0,69652.0,0.316789]
[1722223005343,1.001,69653.0,69652.0,0.149933]
[1722223005778,1.002,69653.0,69652.0,0.149933]
[1722223006002,1.001,69653.0,69652.0,0.199933]
[1722223006212,1.0,69653.0,69652.0,0.199933]
[1722223006445,1.001,69653.0,69652.0,0.202933]
[1722223006656,1.001,69653.0,69652.0,0.32675397]
[1722223006864,1.001,69653.0,69652.0,0.55646697]
[1722223007102,1.001,69653.0,69652.0,1.11789297]
[1722223007534,1.002,69653.0,69652.0,1.12389297]
[1722223007753,1.002,69653.0,69652.0,1.70893094]
[1722223007754,0.84565058,69653.0,69652.0,1.70893094]
[1722223007976,0.68787578,69653.0,69652.0,1.37271319]
[1722223008188,0.68687578,69653.0,69652.0,1.41081794]
[1722223008426,0.68687578,69653.0,69652.0,1.33581794]
[1722223008427,0.37014865,69653.0,69652.0,1.33581794]
[1722223008649,0.26985482,69653.0,69652.0,1.68663094]
[1722223008881,0.1645948,69653.0,69652.0,1.68663094]
[1722223009103,0.01813686,69653.0,69652.0,1.56127751]
[1722223009320,0.01913686,69653.0,69652.0,1.56727751]
[1722223009538,0.02013686,69653.0,69652.0,1.68661711]
[1722223009801,0.02013686,69653.0,69652.0,1.68661678]
[1722223010500,0.02013686,69653.0,69652.0,1.75690378]
[1722223010720,0.02013686,69653.0,69652.0,1.70679903]
[1722223010721,0.01913686,69653.0,69652.0,1.70679903]
[1722223010940,0.01913686,69653.0,69652.0,1.41279903]
[1722223011154,0.02013686,69653.0,69652.0,1.56369297]
[1722223011377,0.02013686,69653.0,69652.0,1.68303768]
[1722223011589,0.02013686,69653.0,69652.0,1.56369297]
[1722223011790,0.02013686,69653.0,69652.0,1.26369297]
[1722223012786,0.02013686,69653.0,69652.0,0.78087997]
[1722223013009,0.02013686,69653.0,69652.0,0.10659797]
[1722223013981,0.01913686,69653.0,69652.0,0.09559797]
[1722223014331,0.01913686,69653.0,69652.0,0.086633]
[1722223014450,0.02013686,69653.0,69652.0,0.097633]
[1722223014878,0.02013686,69653.0,69652.0,0.047633]
[1722223015707,0.02013686,69653.0,69652.0,0.097633]
[1722223015944,0.02013686,69653.0,69652.0,0.047633]
[1722223016139,0.02013686,69653.0,69652.0,0.026533]
[1722223016376,0.02013686,69653.0,69652.0,0.020533]
[1722223016580,0.01913686,69653.0,69652.0,0.020533]
[1722223016778,0.02013686,69653.0,69652.0,0.024533]
[1722223017796,0.31134686,69653.0,69652.0,0.024533]
[1722223017997,0.72039371,69653.0,69652.0,0.024533]
[1722223018206,0.23948544,69653.0,69652.0,0.024533]
[1722223018415,0.19649186,69653.0,69652.0,0.024533]
[1722223018759,0.42520186,69653.0,69652.0,0.013533]
[1722223018956,0.48969032,69653.0,69652.0,0.013533]
[1722223019202,0.42520186,69653.0,69652.0,0.016533]
[1722223019400,0.42420186,69653.0,69652.0,0.012533]
[1722223019719,0.51018505,69653.0,69652.0,0.017533]
[1722223020061,0.19549186,69653.0,69652.0,0.017533]
[1722223020198,0.510185,69653.0,69652.0,0.012533]
[1722223020607,0.281475,69653.0,69652.0,0.017533]
[1722223021008,0.19549186,69653.0,69652.0,0.017533]
[1722223021352,0.16661599,69653.0,69652.0,0.017533]
[1722223021553,0.28147099,69653.0,69652.0,0.017533]
[1722223021769,0.74089099,69653.0,69652.0,0.017533]
[1722223021975,0.82229099,69653.0,69652.0,0.016877]
[1722223022176,0.75931186,69653.0,69652.0,0.016877]
[1722223022321,0.76015186,69653.0,69652.0,0.016877]
[1722223023535,0.94014832,69653.0,69652.0,0.016877]
[1722223023738,1.29883098,69653.0,69652.0,0.016877]
[1722223023956,1.26985832,69653.0,69652.0,0.016877]
[1722223024567,1.31920232,69653.0,69652.0,0.016877]
[1722223024756,1.31920232,69653.0,69650.0,0.00052]
[1722223024757,0.854384,69651.0,69650.0,0.00052]
[1722223024972,1.2071,69651.0,69650.0,0.00052]
[1722223025375,1.2071,69651.0,69638.0,0.46711218]
[1722223025376,0.57439,69639.0,69638.0,0.46711218]
[1722223025532,0.74199,69639.0,69638.0,0.000656]
[1722223025734,0.74199,69639.0,69634.0,0.0156549]
[1722223025735,0.719005,69637.0,69636.0,0.000656]
[1722223026082,0.8049739,69637.0,69636.0,0.000656]
[1722223026280,0.742005,69637.0,69636.0,0.000656]
[1722223027218,0.971767,69637.0,69636.0,0.000656]
[1722223027356,0.971767,69637.0,69635.0,0.000656]
[1722223027357,0.114883,69636.0,69635.0,0.000656]
[1722223027559,0.114883,69636.0,69634.0,0.0156549]
[1722223027560,0.490653,69635.0,69634.0,0.0156549]
[1722223027795,0.973191,69635.0,69634.0,0.0156549]
[1722223028028,1.059341,69635.0,69634.0,0.0156549]
[1722223028255,1.159341,69635.0,69634.0,0.0156549]
[1722223028697,0.929572,69635.0,69634.0,0.0156549]
[1722223028918,0.383884,69635.0,69634.0,0.0163109]
[1722223029143,0.613653,69635.0,69634.0,0.0163109]
[1722223029347,0.33341566,69635.0,69634.0,0.0163109]
[1722223029548,0.246,69635.0,69634.0,0.0163109]
[1722223029746,0.146,69635.0,69634.0,0.0163109]
[1722223029996,0.001,69637.0,69636.0,0.004656]
[1722223030581,0.17544399,69637.0,69636.0,0.004]
[1722223030784,1.345117,69637.0,69636.0,0.004]
[1722223031184,1.186161,69637.0,69636.0,0.004]
[1722223031382,1.136817,69637.0,69636.0,0.004]
[1722223031855,0.930055,69637.0,69636.0,0.004]
[1722223032052,0.930055,69637.0,69634.0,0.0163109]
[1722223032053,0.114884,69636.0,69635.0,0.000656]
[1722223032259,0.237884,69636.0,69635.0,0.000656]
[1722223032465,0.5320302,69636.0,69635.0,0.000656]
[1722223032606,0.697416,69636.0,69635.0,0.000656]
[1722223032810,0.7617962,69636.0,69635.0,0.000656]
[1722223033377,0.927182,69636.0,69635.0,0.000656]
[1722223034298,0.972941,69635.0,69634.0,0.0156549]
[1722223034498,1.156141,69635.0,69634.0,0.0156549]
[1722223034948,0.890457,69625.0,69620.0,0.46645618]
[1722223035126,0.803455,69625.0,69622.0,0.000656]
[1722223035301,0.826455,69625.0,69622.0,0.000656]
[1722223035514,0.229823,69619.0,69612.0,0.33532041]
[1722223035716,0.114918,69615.0,69612.0,0.33532041]
[1722223035926,0.404963,69613.0,69612.0,0.33532041]
[1722223037135,0.48994491,69613.0,69612.0,0.33532041]
[1722223037328,0.71978691,69613.0,69612.0,0.33532041]
[1722223037571,0.488563,69613.0,69612.0,0.33532041]
[1722223038113,0.506699,69613.0,69612.0,0.33532041]
[1722223038314,0.506699,69613.0,69600.0,0.05]
[1722223038315,0.229846,69612.0,69600.0,0.33532041]
[1722223038532,0.229846,69612.0,69599.0,0.008888]
[1722223038533,0.229862,69607.0,69599.0,0.008888]
[1722223038729,0.114936,69604.0,69599.0,0.008888]
[1722223039353,0.114939,69602.0,69599.0,0.008888]
[1722223039971,0.023,69611.0,69599.0,0.008888]
[1722223040152,0.114939,69602.0,69599.0,0.008888]
[1722223040403,0.02438191,69612.0,69599.0,0.008888]
[1722223040635,0.114941,69601.0,69599.0,0.008888]
[1722223040814,0.114939,69602.0,69599.0,0.008888]
[1722223041020,0.229876,69603.0,69599.0,0.008888]
[1722223041221,0.114942,69600.0,69599.0,0.008888]
[1722223041436,0.344827,69600.0,69599.0,0.008888]
[1722223041654,0.574712,69600.0,69599.0,0.008888]
[1722223041833,0.001,69602.0,69599.0,0.008888]
[1722223042086,0.344827,69600.0,69599.0,0.008888]
[1722223042312,0.11494,69601.0,69599.0,0.008888]
[1722223042500,0.1428,69613.0,69599.0,0.008888]
[1722223042692,0.114942,69600.0,69599.0,0.008888]
[1722223042889,0.344827,69600.0,69599.0,0.008888]
[1722223043129,0.345827,69600.0,69599.0,0.008888]
[1722223043334,0.575712,69600.0,69599.0,0.008888]
[1722223043556,0.345827,69600.0,69599.0,0.008888]
[1722223043978,0.575712,69600.0,69599.0,0.008888]
[1722223044877,0.805597,69600.0,69599.0,0.008888]
[1722223045098,0.575712,69600.0,69599.0,0.008888]
[1722223045308,0.805597,69600.0,69599.0,0.008888]
[1722223045725,0.575712,69600.0,69599.0,0.008888]
[1722223046145,0.804597,69600.0,69599.0,0.008888]
[1722223046359,0.575712,69600.0,69599.0,0.008888]
[1722223046561,0.594848,69600.0,69599.0,0.008888]
[1722223047413,0.824733,69600.0,69599.0,0.008888]
[1722223048042,0.989033,69600.0,69599.0,0.008888]
[1722223048253,1.089033,69600.0,69599.0,0.008888]
[1722223048900,1.088033,69600.0,69599.0,0.008888]
[1722223049257,1.453068,69600.0,69599.0,0.008888]
[1722223049677,1.403068,69600.0,69599.0,0.008888]
[1722223050056,1.316918,69600.0,69599.0,0.008888]
[1722223050264,1.46001739,69600.0,69599.0,0.008888]
[1722223050448,1.316918,69600.0,69599.0,0.008888]
[1722223050652,1.087033,69600.0,69599.0,0.008888]
[1722223051264,1.098033,69600.0,69599.0,0.008888]
[1722223052139,1.327918,69600.0,69599.0,0.008888]
[1722223052351,1.47101739,69600.0,69599.0,0.008888]
[1722223052691,1.316918,69600.0,69599.0,0.008888]
[1722223052902,1.327918,69600.0,69599.0,0.008888]
[1722223053311,1.453068,69600.0,69599.0,0.008888]
[1722223053480,1.464068,69600.0,69599.0,0.008888]
[1722223054003,1.234183,69600.0,69599.0,0.008888]
[1722223054469,1.69616739,69600.0,69599.0,0.008888]
[1722223054642,1.464068,69600.0,69599.0,0.008888]
[1722223055000,1.514068,69600.0,69599.0,0.008888]
[1722223055210,1.564068,69600.0,69599.0,0.008888]
[1722223055418,1.564068,69600.0,69568.0,0.033999]
[1722223055419,0.114988,69573.0,69569.0,0.00017229]
[1722223055625,0.229959,69578.0,69569.0,0.00017229]
[1722223055847,0.229959,69578.0,69568.0,0.04297937]
[1722223056039,0.114984,69575.0,69568.0,0.04297937]
[1722223056236,0.229962,69577.0,69568.0,0.03797937]
[1722223056237,0.114986,69574.0,69568.0,0.03797937]
[1722223056553,0.114987,69573.0,69568.0,0.03797937]
[1722223056752,0.00138191,69571.0,69568.0,0.03797937]
[1722223056955,0.11636991,69572.0,69568.0,0.03797937]
[1722223057221,0.0655,69571.0,69568.0,0.01287937]
[1722223057403,0.00138191,69570.0,69568.0,0.01287937]
[1722223057631,0.00138191,69570.0,69569.0,0.0094]
[1722223057921,0.00138191,69570.0,69568.0,0.02857937]
[1722223058121,0.00138191,69573.0,69568.0,0.01287937]
[1722223058463,0.001,69571.0,69568.0,0.01287937]
[1722223059914,0.00138191,69570.0,69568.0,0.01287937]
[1722223060322,0.001,69571.0,69568.0,0.01287937]
[1722223060550,0.001,69571.0,69569.0,0.00287446]
[1722223060551,0.00106663,69570.0,69569.0,0.00287446]
[1722223060705,0.001,69571.0,69570.0,0.05]
[1722223060902,0.001,69571.0,69570.0,0.0251]
[1722223061659,0.002,69571.0,69570.0,0.0251]
[1722223061799,0.001,69571.0,69570.0,0.0251]
[1722223062001,0.001,69571.0,69568.0,0.01287937]
[1722223062224,0.11599,69571.0,69568.0,0.003899]
[1722223062423,0.229956,69579.0,69568.0,0.003899]
[1722223062643,0.001,69571.0,69569.0,0.00017229]
[1722223063059,0.0008271,69571.0,69568.0,0.003899]
[1722223063482,0.0008271,69571.0,69569.0,0.11969043]
[1722223063683,0.07060649,69586.0,69569.0,0.00017229]
[1722223063882,0.229948,69581.0,69569.0,0.00017229]
[1722223064111,0.07060649,69586.0,69569.0,0.00017229]
[1722223064268,0.07060649,69586.0,69570.0,0.11951611]
[1722223064444,0.114972,69582.0,69571.0,0.00017229]
[1722223064659,0.229936,69585.0,69571.0,0.00017229]
[1722223064872,0.229936,69585.0,69569.0,0.00017229]
[1722223064873,0.114975,69580.0,69569.0,0.00017229]
[1722223065203,0.001,69571.0,69570.0,0.1195148]
[1722223066015,0.019136,69571.0,69570.0,0.1195148]
[1722223066553,0.019136,69571.0,69570.0,0.11951481]
[1722223067288,0.018136,69571.0,69570.0,0.11951481]
[1722223069399,0.018136,69571.0,69570.0,0.11951769]
[1722223070438,0.018136,69571.0,69568.0,0.003899]
[1722223070645,0.00138191,69570.0,69569.0,0.11952121]
[1722223071307,0.00138191,69570.0,69569.0,0.11952274]
[1722223071425,0.00138191,69570.0,69568.0,0.003899]
[1722223071633,0.0623,69569.0,69568.0,0.003899]
[1722223071833,0.06368191,69569.0,69568.0,0.12342207]
[1722223072951,0.00138191,69569.0,69568.0,0.12342207]
[1722223073230,0.018136,69571.0,69568.0,0.12342207]
[1722223073443,0.018136,69571.0,69569.0,0.11952307]
[1722223073615,0.00138191,69570.0,69568.0,0.003899]
[1722223074379,0.018136,69571.0,69569.0,0.11952308]
[1722223074711,0.018136,69571.0,69570.0,0.05]
[1722223074918,0.018136,69571.0,69570.0,0.61449683]
[1722223075125,0.018136,69571.0,69570.0,0.84665312]
[1722223075352,0.018136,69571.0,69570.0,0.84648083]
[1722223075533,0.018136,69571.0,69570.0,0.72696]
[1722223075799,0.018136,69571.0,69570.0,0.8464642]
[1722223075989,0.018136,69571.0,69570.0,1.14663649]
[1722223076177,0.018136,69571.0,69570.0,0.8464642]
[1722223076383,0.018136,69571.0,69570.0,0.1195042]
[1722223076583,0.018136,69571.0,69570.0,0.2844962]
[1722223076967,0.018136,69571.0,69570.0,0.6144802]
[1722223077127,0.018136,69571.0,69570.0,0.8444642]
[1722223077547,0.018136,69571.0,69570.0,0.6144802]
[1722223077989,0.018136,69571.0,69570.0,0.8444642]
[1722223078164,0.018136,69571.0,69570.0,0.8439642]
[1722223078647,0.018136,69571.0,69570.0,0.72496]
[1722223078844,0.018136,69571.0,69570.0,0.05]
[1722223079068,0.018136,69571.0,69570.0,0.164992]
[1722223079279,0.018136,69571.0,69570.0,0.05]
[1722223079487,0.018136,69571.0,69569.0,0.00885653]
[1722223079688,0.018136,69571.0,69568.0,0.003899]
[1722223079908,0.00138191,69570.0,69568.0,0.003899]
[1722223080114,0.00138191,69570.0,69568.0,0.01310449]
[1722223080321,0.00138191,69570.0,69568.0,0.003899]
[1722223081818,0.018136,69571.0,69570.0,0.04731809]
[1722223083034,0.018136,69571.0,69570.0,0.04631809]
[1722223083260,0.944486,69571.0,69570.0,0.04631809]
[1722223083500,1.174466,69571.0,69570.0,0.04631809]
[1722223083902,1.21748148,69571.0,69570.0,0.04631809]
[1722223084257,1.23898922,69571.0,69570.0,0.04631809]
[1722223084607,0.966166,69571.0,69570.0,0.04631809]
[1722223085459,1.03168922,69571.0,69570.0,0.04631809]
[1722223085671,1.03068922,69571.0,69570.0,0.04631809]
[1722223085995,0.966166,69571.0,69570.0,0.04631809]
[1722223086197,0.736186,69571.0,69570.0,0.04631809]
[1722223086402,0.276226,69571.0,69570.0,0.04631809]
[1722223086602,0.018136,69571.0,69570.0,0.04631809]
[1722223087461,0.133126,69571.0,69570.0,0.04631809]
[1722223087851,0.593086,69571.0,69570.0,0.04631809]
[1722223088095,0.616086,69571.0,69570.0,0.04631809]
[1722223088481,0.65910974,69571.0,69570.0,0.04631809]
[1722223088695,0.616086,69571.0,69570.0,0.04631809]
[1722223088896,0.756786,69571.0,69570.0,0.04631809]
[1722223089096,0.986766,69571.0,69570.0,0.04631809]
[1722223089964,0.86442816,69571.0,69570.0,0.04631809]
[1722223090134,0.756786,69571.0,69570.0,0.04724209]
[1722223090561,0.297666,69571.0,69570.0,0.04724209]
[1722223090741,0.159676,69571.0,69570.0,0.04724209]
[1722223090951,0.56924856,69571.0,69570.0,0.04724209]
[1722223091167,0.79922856,69571.0,69570.0,0.04724209]
[1722223091314,0.734626,69571.0,69570.0,0.04724209]
[1722223091718,0.504646,69571.0,69570.0,0.04724209]
[1722223092120,0.527646,69571.0,69570.0,0.04724209]
[1722223092405,0.61378098,69571.0,69570.0,0.04724209]
[1722223092619,0.527646,69571.0,69570.0,0.04724209]
[1722223093272,0.757626,69571.0,69570.0,0.04724209]
[1722223094095,0.987606,69571.0,69570.0,0.04724209]